[Event "22nd Hogeschool Zeeland 2018"]
[Site "Vlissingen"]
[Date "2018.08.05"]
[Round "3"]
[White "De Waele, Warre"]
[Black "Van Delft, Merijn"]
[Result "1/2-1/2"]
[ECO "D45"]
[WhiteElo "2237"]
[BlackElo "2395"]
[Annotator "NA"]
[PlyCount "42"]
[EventDate "2018.08.04"]
[EventType "swiss"]
[EventCountry "NED"]
[SourceTitle "playchess.com"]
[Source "ChessBase"]
[SourceQuality "1"]
[TimeControl "40/5400+30:1800+30"]

1. d4 {[%emt 0:00:00]} d5 {[%emt 0:00:00]} 2. c4 {[%emt 0:00:00]} c6 {[%emt 0:00:00]} 3. Nf3 {[%emt 0:00:00]} Nf6 {[%emt 0:00:00]} 4. Nc3 {[%emt 0:00:02]} e6 {[%emt 0:00:05]} 5. e3 {[%emt 0:00:06]} Nbd7 {[%emt 0:00:25]} 6. b3 {[%emt 0:00:21]} Bb4 {[%emt 0:01:56]} 7. Bd2 {[%emt 0:00:20]} O-O {[%emt 0:02:34]} 8. Be2 {[%emt 0:05:45]} b6 {[%emt 0:04:44]} 9. O-O {[%emt 0:00:13]} Qe7 {[%emt 0:04:59]} 10. Bd3 {[%emt 0:06:44]} Bb7 {[%emt 0:00:55]} 11. Qc2 {[%emt 0:17:57]} dxc4 {[%emt 0:06:00]} 12. bxc4 {[%emt 0:00:07]} c5 {[%emt 0:00:48]} 13. Ne4 {[%emt 0:02:52]} Bxd2 {[%emt 0:02:31]} 14. Nexd2 {[%emt 0:00:09]} Rfd8 {[%emt 0:02:08]} 15. Rfe1 {[%emt 0:14:20]} g6 {[%emt 0:04:16]} 16. a4 {[%emt 0:07:29]} Nb8 {[%emt 0:05:24]} 17. a5 {[%emt 0:00:24]} Nc6 {[%emt 0:02:21]} 18. axb6 {[%emt 0:00:18]} Nb4 {[%emt 0:05:20]} 19. Qc3 {[%emt 0:01:15]} axb6 {[%emt 0:01:25]} 20. Bf1 {[%emt 0:00:46]} Rxa1 {[%emt 0:12:45]} 21. Rxa1 {[%emt 0:00:13]} Ra8 {[%emt 0:00:22]} 1/2-1/2

[Event "22nd Hogeschool Zeeland 2018"]
[Site "Vlissingen"]
[Date "2018.08.05"]
[Round "3"]
[White "Elgersma, Onno"]
[Black "Timmermans, Mark"]
[Result "1/2-1/2"]
[ECO "C45"]
[WhiteElo "2171"]
[BlackElo "2383"]
[Annotator "NA"]
[PlyCount "42"]
[EventDate "2018.08.04"]
[EventType "swiss"]
[EventCountry "NED"]
[SourceTitle "playchess.com"]
[Source "ChessBase"]
[SourceQuality "1"]
[TimeControl "40/5400+30:1800+30"]

1. e4 {[%emt 0:00:00]} e5 {[%emt 0:00:00]} 2. Nf3 {[%emt 0:00:00]} Nc6 {[%emt 0:00:00]} 3. d4 {[%emt 0:00:11]} exd4 {[%emt 0:00:00]} 4. Nxd4 {[%emt 0:00:05]} Nf6 {[%emt 0:00:03]} 5. Nxc6 {[%emt 0:00:17]} bxc6 {[%emt 0:00:06]} 6. e5 {[%emt 0:00:06]} Qe7 {[%emt 0:00:18]} 7. Qe2 {[%emt 0:00:04]} Nd5 {[%emt 0:00:03]} 8. h4 {[%emt 0:00:56]} f6 {[%emt 0:03:08]} 9. c4 {[%emt 0:01:01]} Ba6 {[%emt 0:00:30]} 10. Rh3 {[%emt 0:01:52]} fxe5 {[%emt 0:03:13]} 11. Bg5 {[%emt 0:02:09]} Nf6 {[%emt 0:00:54]} 12. Re3 {[%emt 0:06:38]} O-O-O {[%emt 0:00:21]} 13. Nd2 {[%emt 0:07:39]} Qf7 {[%emt 0:04:52]} 14. O-O-O {[%emt 0:06:36]} h6 {[%emt 0:02:05]} 15. Bxf6 {[%emt 0:14:18]} gxf6 {[%emt 0:00:45]} 16. Rf3 {[%emt 0:01:04]} Qe6 {[%emt 0:22:19]} 17. Qe3 {[%emt 0:04:11]} c5 {[%emt 0:00:11]} 18. Ne4 {[%emt 0:13:31]} h5 {[%emt 0:00:40]} 19. Kb1 {[%emt 0:06:28]} Bb7 {[%emt 0:04:38]} 20. Rxf6 {[%emt 0:03:16]} Qg4 {[%emt 0:00:07]} 21. f3 {[%emt 0:05:05]} Bxe4+ {[%emt 0:12:29]} 1/2-1/2

[Event "22nd Hogeschool Zeeland 2018"]
[Site "Vlissingen"]
[Date "2018.08.05"]
[Round "3"]
[White "Mesman, Edwyn"]
[Black "Grooten, Herman"]
[Result "1/2-1/2"]
[ECO "A44"]
[WhiteElo "2154"]
[BlackElo "2374"]
[Annotator "ChessBase"]
[PlyCount "73"]
[EventDate "2018.08.04"]
[EventType "swiss"]
[EventCountry "NED"]
[SourceTitle "playchess.com"]
[Source "ChessBase"]
[SourceQuality "1"]
[TimeControl "40/5400+30:1800+30"]

1. d4 {[%emt 0:05:07]} c5 {[%emt 0:01:25]} 2. d5 {[%emt 0:00:31]} e5 {[%emt 0:00:08]} 3. e4 {[%emt 0:02:14]} d6 {[%emt 0:00:14]} 4. c4 {[%emt 0:00:35]} Be7 {[%emt 0:00:50]} 5. Nf3 {[%emt 0:01:00]} Bg4 {[%emt 0:01:38]} 6. Be2 {[%emt 0:07:27]} Na6 {[%emt 0:07:13]} 7. Nxe5 {[%emt 0:11:42]} Bxe2 {[%emt 0:10:56]} 8. Qa4+ {[%emt 0:01:01]} Kf8 {[%emt 0:00:09]} 9. Nd7+ {[%emt 0:00:39]} Qxd7 {[%emt 0:08:29]} 10. Qxd7 {[%emt 0:00:29]} Bxc4 {[%emt 0:01:42]} 11. Na3 {[%emt 0:18:57]} Bd3 {[%emt 0:00:10]} 12. Qxb7 {[%emt 0:04:11]} Re8 {[%emt 0:00:45]} 13. f3 {[%emt 0:09:36]} f5 {[%emt 0:02:19]} 14. e5 {[%emt 0:07:38]} dxe5 {[%emt 0:01:23]} 15. d6 {[%emt 0:01:07]} Bd8 {[%emt 0:02:53]} 16. Be3 {[%emt 0:04:28]} Ba5+ {[%emt 0:01:28]} 17. Bd2 {[%emt 0:00:56]} Bb6 {[%emt 0:01:24]} 18. Qd5 {[%emt 0:03:16]} e4 {[%emt 0:00:51]} 19. d7 {[%emt 0:00:52]} Rd8 {[%emt 0:00:34]} 20. Qxf5+ {[%emt 0:06:30]} Nf6 {[%emt 0:00:29]} 21. Bc3 {[%emt 0:00:16]} Ke7 {[%emt 0:01:11]} 22. O-O-O {[%emt 0:03:17]} Nb4 {[%emt 0:12:05]} 23. Bxb4 {[%emt 0:00:41]} cxb4 {[%emt 0:00:16]} 24. Rxd3 {[%emt 0:00:11]} exd3 {[%emt 0:00:35]} 25. Re1+ {[%emt 0:00:18]} Kf7 {[%emt 0:01:23]} 26. Qe6+ {[%emt 0:02:22]} Kg6 {[%emt 0:00:49]} 27. Kd2 {[%emt 0:00:08]} bxa3 {[%emt 0:00:45]} 28. Re4 {[%emt 0:04:02]} h5 {[%emt 0:03:41]} 29. g4 {[%emt 0:00:52]} Kh6 {[%emt 0:10:35]} 30. Re5 {[%emt 0:02:41]} hxg4 {[%emt 0:01:24]} 31. fxg4 {[%emt 0:00:07]} Bc7 {[%emt 0:05:14]} 32. g5+ {[%emt 0:00:45]} Kh7 {[%emt 0:04:49]} 33. Qf5+ {[%emt 0:00:50]} Kg8 {[%emt 0:01:34]} 34. Qe6+ {[%emt 0:00:08]} Kh7 {[%emt 0:00:30]} 35. Qf5+ {[%emt 0:00:59]} Kg8 {[%emt 0:00:09]} 36. Qe6+ {[%emt 0:00:05]} Kh7 {[%emt 0:00:15]} 37. Qf5+ {[%emt 0:00:05]} 1/2-1/2

[Event "22nd Hogeschool Zeeland 2018"]
[Site "Vlissingen"]
[Date "2018.08.05"]
[Round "3"]
[White "IJzermans, Cees"]
[Black "Haast, Mark"]
[Result "1/2-1/2"]
[ECO "E11"]
[WhiteElo "2142"]
[BlackElo "2350"]
[Annotator "NA"]
[PlyCount "85"]
[EventDate "2018.08.04"]
[EventType "swiss"]
[EventCountry "NED"]
[SourceTitle "playchess.com"]
[Source "ChessBase"]
[SourceQuality "1"]
[TimeControl "40/5400+30:1800+30"]

1. d4 {[%emt 0:03:52]} Nf6 {[%emt 0:00:06]} 2. c4 {[%emt 0:00:09]} e6 {[%emt 0:00:12]} 3. Nf3 {[%emt 0:00:34]} Bb4+ {[%emt 0:09:47]} 4. Nbd2 {[%emt 0:00:56]} d6 {[%emt 0:02:08]} 5. a3 {[%emt 0:03:24]} Bxd2+ {[%emt 0:00:09]} 6. Qxd2 {[%emt 0:00:07]} O-O {[%emt 0:04:28]} 7. g4 {[%emt 0:04:33]} Nc6 {[%emt 0:06:01]} 8. g5 {[%emt 0:04:55]} Nd7 {[%emt 0:01:54]} 9. b4 {[%emt 0:03:35]} e5 {[%emt 0:01:37]} 10. Bb2 {[%emt 0:00:15]} Nxd4 {[%emt 0:01:31]} 11. Nxd4 {[%emt 0:02:05]} exd4 {[%emt 0:00:05]} 12. Bxd4 {[%emt 0:00:06]} a5 {[%emt 0:02:53]} 13. b5 {[%emt 0:00:18]} Qe7 {[%emt 0:15:08]} 14. f4 {[%emt 0:09:09]} f5 {[%emt 0:05:27]} 15. Bg2 {[%emt 0:03:08]} Nc5 {[%emt 0:02:04]} 16. Bxc5 {[%emt 0:03:23]} dxc5 {[%emt 0:00:11]} 17. Rd1 {[%emt 0:01:02]} Be6 {[%emt 0:20:06]} 18. Bxb7 {[%emt 0:00:48]} Rad8 {[%emt 0:00:05]} 19. Bd5 {[%emt 0:00:18]} Bxd5 {[%emt 0:00:03]} 20. cxd5 {[%emt 0:00:06]} Rfe8 {[%emt 0:00:20]} 21. O-O {[%emt 0:03:10]} Qxe2 {[%emt 0:00:05]} 22. Qxe2 {[%emt 0:01:19]} Rxe2 {[%emt 0:00:05]} 23. Rf2 {[%emt 0:00:05]} Re4 {[%emt 0:01:45]} 24. Rc2 {[%emt 0:00:58]} c4 {[%emt 0:00:05]} 25. Rdc1 {[%emt 0:06:32]} Rxd5 {[%emt 0:00:13]} 26. Rxc4 {[%emt 0:00:06]} Rxc4 {[%emt 0:00:18]} 27. Rxc4 {[%emt 0:00:02]} Rxb5 {[%emt 0:00:06]} 28. Rxc7 {[%emt 0:00:05]} Rb3 {[%emt 0:02:29]} 29. Rc5 {[%emt 0:02:06]} Rxa3 {[%emt 0:00:07]} 30. Rxf5 {[%emt 0:00:05]} Ra2 {[%emt 0:00:47]} 31. Rb5 {[%emt 0:00:22]} g6 {[%emt 0:00:08]} 32. Rb8+ {[%emt 0:00:24]} Kf7 {[%emt 0:00:08]} 33. Rb7+ {[%emt 0:00:05]} Ke6 {[%emt 0:01:06]} 34. Rxh7 {[%emt 0:00:41]} Kf5 {[%emt 0:00:06]} 35. Rf7+ {[%emt 0:00:07]} Kg4 {[%emt 0:00:14]} 36. h3+ {[%emt 0:02:16]} Kg3 {[%emt 0:01:05]} 37. Kf1 {[%emt 0:00:05]} Rf2+ {[%emt 0:03:14]} 38. Ke1 {[%emt 0:00:16]} Rxf4 {[%emt 0:00:09]} 39. Rf6 {[%emt 0:00:22]} Re4+ {[%emt 0:03:50]} 40. Kd2 {[%emt 0:00:15]} Kxh3 {[%emt 0:00:08]} 41. Rxg6 {[%emt 0:30:05]} Kg4 {[%emt 0:30:10]} 42. Ra6 {[%emt 0:00:14]} Kxg5 {[%emt 0:00:06]} 43. Rxa5+ {[%emt 0:00:07]} 1/2-1/2

[Event "22nd Hogeschool Zeeland 2018"]
[Site "Vlissingen"]
[Date "2018.08.06"]
[Round "4"]
[White "Ikonnikov, Vyacheslav"]
[Black "Schoppen, Casper"]
[Result "1-0"]
[ECO "E43"]
[WhiteElo "2546"]
[BlackElo "2395"]
[Annotator "RC"]
[PlyCount "99"]
[EventDate "2018.08.04"]
[EventType "swiss"]
[EventCountry "NED"]
[SourceTitle "playchess.com"]
[Source "ChessBase"]
[SourceQuality "1"]
[TimeControl "40/5400+30:1800+30"]

1. d4 {[%emt 0:00:00]} Nf6 {[%emt 0:00:00]} 2. Nf3 {[%emt 0:00:00]} e6 {[%emt 0:00:06]} 3. c4 {[%emt 0:00:13]} b6 {[%emt 0:00:07]} 4. Nc3 {[%emt 0:00:48]} Bb4 {[%emt 0:00:16]} 5. e3 {[%emt 0:00:24]} Bb7 {[%emt 0:01:00]} 6. Bd3 {[%emt 0:00:18]} O-O {[%emt 0:00:31]} 7. O-O {[%emt 0:00:42]} Bxc3 {[%emt 0:07:23]} 8. bxc3 {[%emt 0:00:10]} Be4 {[%emt 0:00:43]} 9. Be2 {[%emt 0:05:59]} c5 {[%emt 0:00:10]} 10. Ne1 {[%emt 0:01:22]} Bb7 {[%emt 0:08:15]} 11. f3 {[%emt 0:05:55]} d6 {[%emt 0:00:57]} 12. Nc2 {[%emt 0:19:28]} Nc6 {[%emt 0:04:34]} 13. e4 {[%emt 0:10:09]} h6 {[%emt 0:11:04]} 14. d5 {[%emt 0:02:05]} Na5 {[%emt 0:03:12]} 15. Rf2 {[%emt 0:13:07]} Qe7 {[%emt 0:07:03]} 16. Bd2 {[%emt 0:02:30]} Nd7 {[%emt 0:07:07]} 17. Ne3 {[%emt 0:00:22]} Ne5 {[%emt 0:01:56]} 18. f4 {[%emt 0:02:44]} Nd7 {[%emt 0:06:46]} 19. Bd3 {[%emt 0:00:30]} Rae8 {[%emt 0:02:24]} 20. Qf1 {[%emt 0:16:11]} Qd8 {[%emt 0:02:10]} 21. Re1 {[%emt 0:00:38]} exd5 {[%emt 0:02:39]} 22. exd5 {[%emt 0:04:16]} Nf6 {[%emt 0:01:54]} 23. Nf5 {[%emt 0:06:01]} Bc8 {[%emt 0:02:15]} 24. Rfe2 {[%emt 0:01:07]} Bxf5 {[%emt 0:01:04]} 25. Bxf5 {[%emt 0:00:38]} Rxe2 {[%emt 0:00:27]} 26. Qxe2 {[%emt 0:00:39]} Re8 {[%emt 0:01:55]} 27. Qd3 {[%emt 0:01:51]} Re7 {[%emt 0:01:35]} 28. h3 {[%emt 0:02:18]} g6 {[%emt 0:07:05]} 29. Bg4 {[%emt 0:00:11]} Rxe1+ {[%emt 0:04:34]} 30. Bxe1 {[%emt 0:00:05]} Qe8 {[%emt 0:01:19]} 31. Be2 {[%emt 0:01:01]} Ne4 {[%emt 0:01:24]} 32. Bd1 {[%emt 0:00:40]} f5 {[%emt 0:00:45]} 33. Kf1 {[%emt 0:00:11]} g5 {[%emt 0:03:37]} 34. fxg5 {[%emt 0:00:33]} hxg5 {[%emt 0:00:11]} 35. g4 {[%emt 0:01:29]} Qe5 {[%emt 0:03:55]} 36. gxf5 {[%emt 0:00:21]} Qxf5+ {[%emt 0:00:25]} 37. Kg2 {[%emt 0:00:32]} Qh7 {[%emt 0:03:31]} 38. Bc2 {[%emt 0:00:30]} Nf6 {[%emt 0:00:08]} 39. Qe2 {[%emt 0:00:19]} Qd7 {[%emt 0:02:00]} 40. Bg3 {[%emt 0:01:13]} Nb7 {[%emt 0:02:15]} 41. Qe3 {[%emt 0:32:20]} Nh7 {[%emt 0:01:49]} 42. Bg6 {[%emt 0:00:00]} Kg7 {[%emt 0:01:22]} 43. Be8 {[%emt 0:00:00]} Qf5 {[%emt 0:01:47]} 44. Qe7+ {[%emt 0:00:00]} Kh8 {[%emt 0:01:09]} 45. Bh5 {[%emt 0:00:00]} Nf6 {[%emt 0:03:09]} 46. Qf8+ {[%emt 0:00:00]} Kh7 {[%emt 0:00:06]} 47. Qf7+ {[%emt 0:00:00]} Kh6 {[%emt 0:00:36]} 48. Bf3 {[%emt 0:00:00]} g4 {[%emt 0:07:32]} 49. hxg4 {[%emt 0:00:00]} Nxg4 {[%emt 0:05:25]} 50. Bf4+ {[%emt 0:00:00]} 1-0

[Event "22nd Hogeschool Zeeland 2018"]
[Site "Vlissingen"]
[Date "2018.08.06"]
[Round "4"]
[White "Pruijssers, Roeland"]
[Black "Ravi, Teja S"]
[Result "1/2-1/2"]
[ECO "B12"]
[WhiteElo "2506"]
[BlackElo "2374"]
[Annotator "ChessBase"]
[PlyCount "51"]
[EventDate "2018.08.04"]
[EventType "swiss"]
[EventCountry "NED"]
[SourceTitle "playchess.com"]
[Source "ChessBase"]
[SourceQuality "1"]
[TimeControl "40/5400+30:1800+30"]

1. e4 {[%emt 0:00:00]} c6 {[%emt 0:00:00]} 2. d4 {[%emt 0:00:00]} d5 {[%emt 0:00:00]} 3. e5 {[%emt 0:00:00]} Bf5 {[%emt 0:00:00]} 4. Nf3 {[%emt 0:00:00]} e6 {[%emt 0:00:00]} 5. Be2 {[%emt 0:00:04]} c5 {[%emt 0:00:05]} 6. Be3 {[%emt 0:00:21]} cxd4 {[%emt 0:00:22]} 7. Nxd4 {[%emt 0:00:08]} Ne7 {[%emt 0:00:03]} 8. Bb5+ {[%emt 0:00:39]} Nbc6 {[%emt 0:04:04]} 9. O-O {[%emt 0:00:22]} Rc8 {[%emt 0:00:33]} 10. Nd2 {[%emt 0:00:39]} a6 {[%emt 0:04:34]} 11. Bxc6+ {[%emt 0:04:39]} bxc6 {[%emt 0:00:12]} 12. b4 {[%emt 0:00:09]} Qc7 {[%emt 0:05:59]} 13. f4 {[%emt 0:13:50]} g5 {[%emt 0:03:37]} 14. N2b3 {[%emt 0:11:09]} Bg6 {[%emt 0:23:00]} 15. Qd2 {[%emt 0:14:43]} gxf4 {[%emt 0:06:00]} 16. Bxf4 {[%emt 0:01:42]} Nf5 {[%emt 0:00:21]} 17. Nxf5 {[%emt 0:12:27]} Bxf5 {[%emt 0:01:00]} 18. Be3 {[%emt 0:00:08]} Rg8 {[%emt 0:07:27]} 19. Bd4 {[%emt 0:00:52]} a5 {[%emt 0:12:00]} 20. a3 {[%emt 0:07:50]} Qb8 {[%emt 0:04:51]} 21. c3 {[%emt 0:19:16]} a4 {[%emt 0:02:06]} 22. Nc5 {[%emt 0:00:03]} Qb5 {[%emt 0:01:09]} 23. Rae1 {[%emt 0:03:20]} Rg6 {[%emt 0:02:12]} 24. Qd1 {[%emt 0:01:32]} Bxc5 {[%emt 0:03:54]} 25. Bxc5 {[%emt 0:00:24]} Qd3 {[%emt 0:01:46]} 26. Qxd3 {[%emt 0:05:38]} 1/2-1/2

[Event "22nd Hogeschool Zeeland 2018"]
[Site "Vlissingen"]
[Date "2018.08.06"]
[Round "4"]
[White "Van Delft, Merijn"]
[Black "Ojas Kulkarni"]
[Result "1/2-1/2"]
[ECO "C76"]
[WhiteElo "2395"]
[BlackElo "2256"]
[Annotator "NA"]
[PlyCount "39"]
[EventDate "2018.08.04"]
[EventType "swiss"]
[EventCountry "NED"]
[SourceTitle "playchess.com"]
[Source "ChessBase"]
[SourceQuality "1"]
[TimeControl "40/5400+30:1800+30"]

1. e4 {[%emt 0:00:00]} e5 {[%emt 0:00:00]} 2. Nf3 {[%emt 0:00:00]} Nc6 {[%emt 0:00:00]} 3. Bb5 {[%emt 0:00:00]} a6 {[%emt 0:00:00]} 4. Ba4 {[%emt 0:00:00]} d6 {[%emt 0:00:00]} 5. c3 {[%emt 0:02:32]} Bd7 {[%emt 0:01:45]} 6. d4 {[%emt 0:00:35]} g6 {[%emt 0:02:17]} 7. O-O {[%emt 0:00:19]} Bg7 {[%emt 0:00:05]} 8. Re1 {[%emt 0:07:17]} Nge7 {[%emt 0:02:37]} 9. h3 {[%emt 0:09:59]} O-O {[%emt 0:00:27]} 10. a3 {[%emt 0:02:05]} Qe8 {[%emt 0:03:55]} 11. Bb3 {[%emt 0:01:24]} h6 {[%emt 0:02:56]} 12. dxe5 {[%emt 0:13:58]} dxe5 {[%emt 0:01:57]} 13. Nbd2 {[%emt 0:00:16]} Rd8 {[%emt 0:05:15]} 14. Qe2 {[%emt 0:01:15]} Nc8 {[%emt 0:12:24]} 15. Nc4 {[%emt 0:01:59]} Be6 {[%emt 0:00:49]} 16. Ba2 {[%emt 0:00:28]} Nd6 {[%emt 0:00:47]} 17. Nxd6 {[%emt 0:01:06]} Rxd6 {[%emt 0:00:11]} 18. Be3 {[%emt 0:00:33]} Bxa2 {[%emt 0:00:23]} 19. Rxa2 {[%emt 0:00:13]} Qe6 {[%emt 0:00:13]} 20. Raa1 {[%emt 0:08:24]} 1/2-1/2

[Event "22nd Hogeschool Zeeland 2018"]
[Site "Vlissingen"]
[Date "2018.08.06"]
[Round "4"]
[White "Timmermans, Mark"]
[Black "Lopez-Rojas, Jeffrey"]
[Result "1-0"]
[ECO "B06"]
[WhiteElo "2383"]
[BlackElo "2156"]
[Annotator "RC"]
[PlyCount "121"]
[EventDate "2018.08.04"]
[EventType "swiss"]
[EventCountry "NED"]
[SourceTitle "playchess.com"]
[Source "ChessBase"]
[SourceQuality "1"]
[TimeControl "40/5400+30:1800+30"]

1. e4 {[%emt 0:00:00]} g6 {[%emt 0:00:29]} 2. d4 {[%emt 0:00:00]} Bg7 {[%emt 0:00:06]} 3. Nc3 {[%emt 0:00:05]} d6 {[%emt 0:00:08]} 4. Be3 {[%emt 0:00:24]} a6 {[%emt 0:00:11]} 5. h4 {[%emt 0:01:28]} h6 {[%emt 0:02:03]} 6. h5 {[%emt 0:01:01]} g5 {[%emt 0:00:49]} 7. Qd2 {[%emt 0:00:37]} b5 {[%emt 0:00:30]} 8. f4 {[%emt 0:00:45]} gxf4 {[%emt 0:03:05]} 9. Bxf4 {[%emt 0:00:16]} Nf6 {[%emt 0:02:11]} 10. Bd3 {[%emt 0:13:41]} Ng4 {[%emt 0:21:19]} 11. Nf3 {[%emt 0:11:22]} e5 {[%emt 0:09:32]} 12. dxe5 {[%emt 0:01:47]} dxe5 {[%emt 0:02:48]} 13. Bg3 {[%emt 0:00:10]} c6 {[%emt 0:05:21]} 14. Nd1 {[%emt 0:08:50]} Be6 {[%emt 0:06:07]} 15. Nf2 {[%emt 0:00:24]} Nd7 {[%emt 0:03:23]} 16. Nxg4 {[%emt 0:08:59]} Bxg4 {[%emt 0:00:32]} 17. Be2 {[%emt 0:00:09]} Qe7 {[%emt 0:08:07]} 18. Nh4 {[%emt 0:00:38]} Be6 {[%emt 0:00:33]} 19. Nf5 {[%emt 0:02:02]} Bxf5 {[%emt 0:01:14]} 20. exf5 {[%emt 0:00:15]} Rg8 {[%emt 0:17:50]} 21. Rd1 {[%emt 0:08:49]} Bf8 {[%emt 0:02:40]} 22. Bh4 {[%emt 0:04:21]} f6 {[%emt 0:00:25]} 23. O-O {[%emt 0:05:08]} Nb6 {[%emt 0:00:57]} 24. Bf3 {[%emt 0:01:49]} Kf7 {[%emt 0:01:22]} 25. Bf2 {[%emt 0:01:50]} Qc7 {[%emt 0:02:15]} 26. Qa5 {[%emt 0:06:58]} Rb8 {[%emt 0:01:27]} 27. Qxa6 {[%emt 0:00:56]} Kg7 {[%emt 0:03:30]} 28. Rd3 {[%emt 0:03:59]} Kh8 {[%emt 0:01:15]} 29. Rfd1 {[%emt 0:00:08]} c5 {[%emt 0:00:58]} 30. Qxb5 {[%emt 0:02:34]} Nd5 {[%emt 0:01:28]} 31. Qc4 {[%emt 0:00:36]} Nf4 {[%emt 0:01:00]} 32. Rd7 {[%emt 0:00:05]} Qb6 {[%emt 0:00:24]} 33. Bh4 {[%emt 0:01:16]} Nh3+ {[%emt 0:01:18]} 34. Kh2 {[%emt 0:00:43]} Ng5 {[%emt 0:00:11]} 35. Bd5 {[%emt 0:00:18]} Rg7 {[%emt 0:00:56]} 36. Rxg7 {[%emt 0:00:36]} Bxg7 {[%emt 0:00:18]} 37. b3 {[%emt 0:00:30]} Qa7 {[%emt 0:00:37]} 38. Bf2 {[%emt 0:00:23]} Bf8 {[%emt 0:00:24]} 39. a4 {[%emt 0:00:05]} Qd7 {[%emt 0:01:01]} 40. Qg4 {[%emt 0:00:48]} Qe8 {[%emt 0:00:38]} 41. Bc4 {[%emt 0:30:50]} Rb7 {[%emt 0:01:42]} 42. a5 {[%emt 0:00:00]} Rg7 {[%emt 0:00:07]} 43. Qe2 {[%emt 0:00:00]} Ne4 {[%emt 0:16:26]} 44. Be1 {[%emt 0:00:00]} Nd6 {[%emt 0:01:18]} 45. Be6 {[%emt 0:00:00]} Qb8 {[%emt 0:01:55]} 46. Bh4 {[%emt 0:00:00]} Be7 {[%emt 0:00:28]} 47. Qd2 {[%emt 0:00:00]} Kh7 {[%emt 0:00:53]} 48. Ra1 {[%emt 0:04:56]} Rg4 {[%emt 0:01:27]} 49. Ra4 {[%emt 0:01:33]} e4 {[%emt 0:03:30]} 50. Kh3 {[%emt 0:00:03]} Rg7 {[%emt 0:03:29]} 51. a6 {[%emt 0:03:39]} Qa7 {[%emt 0:00:35]} 52. Bg3 {[%emt 0:02:07]} Qa8 {[%emt 0:01:34]} 53. Qd5 {[%emt 0:01:27]} Qe8 {[%emt 0:00:20]} 54. Qd1 {[%emt 0:00:55]} Nb5 {[%emt 0:02:28]} 55. Be1 {[%emt 0:04:54]} Nd4 {[%emt 0:01:08]} 56. a7 {[%emt 0:00:49]} Nf3 {[%emt 0:01:18]} 57. g4 {[%emt 0:00:36]} Qb5 {[%emt 0:00:30]} 58. Bc4 {[%emt 0:00:25]} Ng1+ {[%emt 0:00:00]} 59. Kg2 {[%emt 0:00:33]} Qe8 {[%emt 0:00:29]} 60. a8=Q {[%emt 0:00:16]} Qxh5 {[%emt 0:00:02]} 61. Qg8+ {[%emt 0:00:07]} 1-0

[Event "22nd Hogeschool Zeeland 2018"]
[Site "Vlissingen"]
[Date "2018.08.06"]
[Round "4"]
[White "Haast, Mark"]
[Black "Mesman, Edwyn"]
[Result "1-0"]
[ECO "A37"]
[WhiteElo "2350"]
[BlackElo "2154"]
[Annotator "NA"]
[PlyCount "57"]
[EventDate "2018.08.04"]
[EventType "swiss"]
[EventCountry "NED"]
[SourceTitle "playchess.com"]
[Source "ChessBase"]
[SourceQuality "1"]
[TimeControl "40/5400+30:1800+30"]

1. g3 {[%emt 0:00:52]} c5 {[%emt 0:00:00]} 2. Bg2 {[%emt 0:00:11]} g6 {[%emt 0:00:13]} 3. c4 {[%emt 0:00:44]} Bg7 {[%emt 0:00:16]} 4. Nc3 {[%emt 0:00:11]} Nc6 {[%emt 0:00:06]} 5. Nf3 {[%emt 0:00:36]} e6 {[%emt 0:00:09]} 6. d3 {[%emt 0:01:11]} Nge7 {[%emt 0:00:23]} 7. Bg5 {[%emt 0:00:14]} h6 {[%emt 0:11:49]} 8. Bd2 {[%emt 0:00:17]} b6 {[%emt 0:05:37]} 9. a3 {[%emt 0:02:14]} Bb7 {[%emt 0:01:40]} 10. O-O {[%emt 0:05:26]} d5 {[%emt 0:05:20]} 11. Rb1 {[%emt 0:00:43]} O-O {[%emt 0:16:18]} 12. Qc1 {[%emt 0:00:28]} Kh7 {[%emt 0:02:08]} 13. b4 {[%emt 0:00:25]} cxb4 {[%emt 0:52:31]} 14. axb4 {[%emt 0:00:55]} dxc4 {[%emt 0:00:00]} 15. dxc4 {[%emt 0:00:06]} Qc8 {[%emt 0:00:00]} 16. c5 {[%emt 0:03:51]} bxc5 {[%emt 0:00:00]} 17. bxc5 {[%emt 0:00:06]} Ba6 {[%emt 0:00:00]} 18. Rd1 {[%emt 0:16:41]} Rb8 {[%emt 0:00:00]} 19. Rxb8 {[%emt 0:01:19]} Nxb8 {[%emt 0:00:00]} 20. Qa3 {[%emt 0:03:43]} Nf5 {[%emt 0:00:00]} 21. Bf4 {[%emt 0:07:36]} Nc6 {[%emt 0:00:00]} 22. e4 {[%emt 0:07:15]} Nfd4 {[%emt 0:00:00]} 23. Nxd4 {[%emt 0:00:18]} Nxd4 {[%emt 0:00:00]} 24. Bd6 {[%emt 0:00:24]} Re8 {[%emt 0:00:00]} 25. e5 {[%emt 0:01:07]} Nc6 {[%emt 0:00:00]} 26. f4 {[%emt 0:01:11]} f6 {[%emt 0:00:00]} 27. Qa4 {[%emt 0:02:27]} Bb7 {[%emt 0:00:04]} 28. Rb1 {[%emt 0:07:35]} Ba8 {[%emt 0:00:06]} 29. Nb5 {[%emt 0:01:22]} 1-0

[Event "22nd Hogeschool Zeeland 2018"]
[Site "Vlissingen"]
[Date "2018.08.06"]
[Round "4"]
[White "De Waele, Warre"]
[Black "Gonzales, Jayson"]
[Result "0-1"]
[ECO "D30"]
[WhiteElo "2237"]
[BlackElo "2383"]
[Annotator "NA"]
[PlyCount "45"]
[EventDate "2018.08.04"]
[EventType "swiss"]
[EventCountry "NED"]
[SourceTitle "playchess.com"]
[Source "ChessBase"]
[SourceQuality "1"]
[TimeControl "40/5400+30:1800+30"]

1. d4 {[%emt 0:00:00]} d5 {[%emt 0:00:00]} 2. c4 {[%emt 0:00:00]} e6 {[%emt 0:00:00]} 3. Nf3 {[%emt 0:00:35]} c6 {[%emt 0:00:25]} 4. e3 {[%emt 0:00:49]} Nd7 {[%emt 0:03:44]} 5. Bd3 {[%emt 0:03:34]} dxc4 {[%emt 0:02:28]} 6. Bxc4 {[%emt 0:01:37]} b5 {[%emt 0:00:02]} 7. Bd3 {[%emt 0:02:53]} Bb7 {[%emt 0:00:41]} 8. O-O {[%emt 0:05:06]} Ngf6 {[%emt 0:00:34]} 9. e4 {[%emt 0:07:27]} a6 {[%emt 0:02:56]} 10. a4 {[%emt 0:01:37]} Be7 {[%emt 0:12:00]} 11. Qe2 {[%emt 0:12:17]} bxa4 {[%emt 0:28:56]} 12. Rxa4 {[%emt 0:30:10]} c5 {[%emt 0:00:40]} 13. Bxa6 {[%emt 0:03:29]} Bxe4 {[%emt 0:02:47]} 14. Nbd2 {[%emt 0:02:11]} Bc6 {[%emt 0:01:54]} 15. Ra2 {[%emt 0:00:16]} O-O {[%emt 0:00:51]} 16. Bc4 {[%emt 0:00:22]} Rxa2 {[%emt 0:00:17]} 17. Bxa2 {[%emt 0:00:07]} Qa8 {[%emt 0:00:24]} 18. Bc4 {[%emt 0:05:32]} cxd4 {[%emt 0:01:28]} 19. Bb5 {[%emt 0:01:14]} Bd5 {[%emt 0:02:09]} 20. g3 {[%emt 0:02:15]} Bc5 {[%emt 0:01:50]} 21. b4 {[%emt 0:03:02]} Bxb4 {[%emt 0:10:21]} 22. Nxd4 {[%emt 0:00:10]} Bc5 {[%emt 0:02:15]} 23. N4b3 {[%emt 0:03:28]} 0-1